bitfinex-derivatives/quotes_SOLF0:USTF0_20251122
["timestamp","ask_amount","ask_price","bid_price","bid_amount"]
[1763820021484,5.31189409,125.67,125.65,0.05094735]
[1763820021684,3.11,125.66,125.65,0.05094735]
[1763820021885,3.11,125.66,125.59,7.1705]
[1763820022183,5.25409723,125.65,125.59,7.1705]
[1763820022389,3.11,125.64,125.59,10.4205]
[1763820022590,3.11,125.64,125.59,3.25]
[1763820022789,3.16171661,125.63,125.6,0.06128155]
[1763820024701,0.05171661,125.63,125.6,3.31128155]
[1763820026389,0.05171661,125.63,125.6,5.45537878]
[1763820026582,0.05171661,125.63,125.61,3.25]
[1763820026786,16.7,125.67,125.63,7.1685]
[1763820027096,19.81,125.67,125.63,10.4185]
[1763820027798,5.25409723,125.7,125.64,3.30161575]
[1763820027983,3.11,125.69,125.66,0.05514691]
[1763820028187,3.16846108,125.68,125.66,0.05514691]
[1763820029594,0.05846108,125.68,125.66,3.30514691]
[1763820029795,0.05846108,125.68,125.67,3.25]
[1763820030195,0.05846108,125.68,125.66,0.05514691]
[1763820030495,0.05846108,125.68,125.66,3.30514691]
[1763820032790,3.16846108,125.68,125.66,0.05514691]
[1763820034500,3.16846108,125.68,125.66,3.30514691]
[1763820034501,0.05846108,125.68,125.66,3.30514691]
[1763820035793,0.05846108,125.68,125.67,3.15]
[1763820039701,7.1629,125.73,125.68,3.23]
[1763820039702,3.23,125.72,125.68,3.23]
[1763820040603,3.23,125.73,125.7,3.23]
[1763820040806,0.05647845,125.71,125.7,3.23]
[1763820042604,3.28647845,125.71,125.69,0.05769587]
[1763820042909,0.05647845,125.71,125.69,3.28769587]
[1763820043608,0.05647845,125.71,125.69,10.45249587]
[1763820043796,0.05647845,125.71,125.7,3.23]
[1763820046111,16.7,125.74,125.72,3.23]
[1763820046509,10.3915,125.76,125.72,3.23]
[1763820046813,3.23,125.76,125.73,3.23]
[1763820047112,0.05254597,125.76,125.73,3.28910905]
[1763820047413,0.05254597,125.76,125.75,3.23]
[1763820047903,3.28254597,125.76,125.73,3.28910905]
[1763820048103,0.05254597,125.76,125.73,3.28910905]
[1763820048302,3.28254597,125.76,125.73,3.28910905]
[1763820049012,0.05254597,125.76,125.73,3.28910905]
[1763820049814,0.05254597,125.76,125.75,3.23]
[1763820050809,0.05254597,125.76,125.73,3.28910905]
[1763820051116,3.28254597,125.76,125.73,3.28910905]
[1763820051303,3.28254597,125.76,125.73,0.05910905]
[1763820052515,10.44374597,125.76,125.73,0.05910905]
[1763820052716,3.23,125.75,125.73,0.05910905]
[1763820054813,0.05254597,125.76,125.73,3.28910905]
[1763820055016,3.28254597,125.76,125.73,3.28910905]
[1763820056416,3.28254597,125.76,125.73,0.05910905]
[1763820056620,10.44364597,125.76,125.73,0.05910905]
[1763820056811,3.23,125.75,125.73,0.05910905]
[1763820060323,0.05254597,125.76,125.73,7.22170905]
[1763820060512,0.05254597,125.76,125.74,3.23]
[1763820061220,0.05254597,125.76,125.74,10.3921]
[1763820061421,0.05254597,125.76,125.75,3.23]
[1763820064423,10.56539561,125.83,125.8,3.23]
[1763820064622,3.23,125.86,125.8,3.23]
[1763820064819,9.19435635,125.85,125.8,3.23]
[1763820065124,3.23,125.87,125.83,3.23]
[1763820065324,19.91,125.88,125.83,3.23]
[1763820065518,0.05235335,125.86,125.85,3.23]
[1763820065919,0.05235335,125.86,125.84,0.05350753]
[1763820066328,0.05235335,125.86,125.84,3.34350753]
[1763820067322,3.24235335,125.86,125.84,0.05350753]
[1763820067832,0.05235335,125.86,125.84,0.05350753]
[1763820068124,3.24235335,125.86,125.84,0.05350753]
[1763820068630,0.05235335,125.86,125.84,3.34350753]
[1763820069529,3.24235335,125.86,125.84,0.05350753]
[1763820070024,0.05235335,125.86,125.84,0.05350753]
[1763820070335,0.05235335,125.86,125.84,3.34350753]
[1763820071032,3.24235335,125.86,125.84,0.05350753]
[1763820071921,0.05235335,125.86,125.84,3.34350753]
[1763820072231,10.52539561,125.92,125.86,3.29]
[1763820072425,9.15334871,125.91,125.86,3.29]
[1763820072628,3.19,125.93,125.88,3.29]
[1763820073127,0.05351251,125.92,125.89,0.05970776]
[1763820073427,3.24351251,125.92,125.89,0.05970776]
[1763820075132,0.05351251,125.92,125.89,3.34970776]
[1763820075429,3.19,125.95,125.9,3.29]
[1763820075629,3.19,125.95,125.91,3.29]
[1763820076325,0.05087993,125.94,125.91,3.29]
[1763820076532,0.05087993,125.94,125.92,3.34910861]
[1763820079328,0.05087993,125.94,125.93,3.29]
[1763820079631,0.00087993,125.94,125.93,3.29]
[1763820081830,0.00087993,125.94,125.92,0.05910861]
[1763820082026,0.00087993,125.94,125.92,3.34910861]
[1763820082632,0.00087993,125.94,125.93,3.29]
[1763820083736,0.00087993,125.94,125.93,1.58]
[1763820083942,0.00087993,125.94,125.93,18.28]
[1763820084537,3.19,126.04,125.96,111.2155]
[1763820084737,3.19,126.04,125.97,3.29]
[1763820085244,3.19,126.04,126.0,3.29]
[1763820085535,3.24494002,126.03,126.01,0.05229263]
[1763820086944,0.05494002,126.03,126.01,0.05229263]
[1763820087542,3.24494002,126.03,126.01,0.05229263]
[1763820087954,0.05494002,126.03,126.01,3.34229263]
[1763820088240,3.24494002,126.03,126.01,0.05229263]
[1763820088438,0.05494002,126.03,126.01,3.34229263]
[1763820088632,3.24494002,126.03,126.01,0.05229263]
[1763820089533,3.19,126.02,125.95,3.29]
[1763820090043,3.19,126.01,125.95,10.44]
[1763820090238,3.19,126.01,125.96,3.29]
[1763820090442,19.87,126.04,125.98,3.29]
[1763820090638,0.05018104,126.02,126.0,0.05257932]
[1763820090838,0.05018104,126.02,126.0,3.34257932]
[1763820091240,3.24018104,126.02,126.0,0.05257932]
[1763820093058,3.24018104,126.02,125.94,3.29]
[1763820093352,3.19,126.02,125.95,3.29]
[1763820093954,3.19,126.01,125.95,10.4401]
[1763820094260,127.8304,126.04,125.98,3.29]
[1763820094261,3.19,126.04,125.98,3.29]
[1763820094857,3.19,126.04,126.0,10.4373]
[1763820095161,0.06043231,126.03,126.01,0.05521343]
[1763820095652,3.28043231,126.03,126.01,0.05521343]
[1763820095959,3.28043231,126.03,125.96,3.3]
[1763820096160,3.22,126.03,125.96,3.3]
[1763820096352,3.22,126.02,125.93,111.2415]
[1763820096551,3.22,126.02,125.93,3.3]
[1763820096756,0.05414136,125.99,125.96,3.35077879]
[1763820097461,0.05414136,125.99,125.98,3.26]
[1763820098655,19.84,126.05,125.99,7.1476]
[1763820098859,3.14,126.04,125.99,10.4076]
[1763820099260,16.7,126.05,126.01,10.4067]
[1763820099461,19.84,126.05,126.01,10.4067]
[1763820099967,0.05497255,126.04,126.02,0.0537625]
[1763820102865,3.19497255,126.04,126.02,0.0537625]
[1763820103567,3.14,126.03,126.02,0.0537625]
[1763820106768,3.14,126.03,125.98,3.26]
[1763820106769,3.14,126.01,125.96,10.4092]
[1763820107158,7.1476,126.0,125.94,7.1505]
[1763820107360,3.14,125.99,125.95,3.26]
[1763820107570,3.14,126.02,125.95,3.26]
[1763820107870,0.06038194,126.0,125.98,3.26]
[1763820108471,0.06038194,126.0,125.98,10.4085]
[1763820108670,0.06038194,126.0,125.99,3.26]
[1763820110277,0.06038194,126.0,125.97,3.31869166]
[1763820110868,0.06038194,126.0,125.99,3.26]
[1763820111176,3.14,126.06,126.0,3.26]
[1763820111375,5.87746752,126.05,126.0,3.26]
[1763820111677,3.14,126.07,126.03,3.26]
[1763820111974,10.47539561,126.1,126.03,3.26]
[1763820112176,0.05580544,126.08,126.05,3.3157265]
[1763820113976,0.05580544,126.08,126.07,3.26]
[1763820116481,0.05580544,126.08,126.05,3.3157265]
[1763820117179,3.19580544,126.08,126.05,0.0557265]
[1763820117485,3.14,126.06,126.05,0.0557265]
[1763820118182,3.14,126.05,125.97,3.26]
[1763820118385,9.03806196,126.04,125.97,3.26]
[1763820118583,9.03806196,126.03,125.98,10.4084]
[1763820118780,3.14,126.03,125.98,10.4084]
[1763820118979,0.05209618,126.02,125.99,0.05325806]
[1763820119281,0.05209618,126.02,125.99,3.31325806]
[1763820120674,0.05209618,126.02,126.0,7.1473]
[1763820120889,0.05209618,126.02,125.99,3.31325806]
[1763820121095,3.19209618,126.02,125.99,0.05325806]
[1763820121381,3.14,126.0,125.99,0.05325806]
[1763820121571,0.05209618,126.02,125.99,3.31325806]
[1763820121775,9.04574082,126.01,125.99,0.05325806]
[1763820121974,3.14,126.01,125.99,0.05325806]
[1763820122576,0.05209618,126.02,125.99,3.31325806]
[1763820124183,0.05209618,126.02,126.0,3.26]
[1763820124684,3.19209618,126.02,125.99,0.05325806]
[1763820125275,3.14,126.01,125.99,0.05325806]
[1763820125781,10.2871,126.01,125.99,0.05325806]
[1763820125982,10.2871,126.01,125.93,19.96]
[1763820125983,3.04,125.99,125.93,19.96]
[1763820126172,3.04,125.99,125.93,3.26]
[1763820126483,8.95436254,125.98,125.93,3.26]
[1763820126780,3.04,125.98,125.93,3.26]
[1763820126987,118.51199561,126.01,125.95,3.33]
[1763820126988,0.05477451,125.97,125.95,3.33]
[1763820127188,0.05477451,125.97,125.95,3.38395743]
[1763820129887,0.05477451,125.97,125.95,121.75985743]
[1763820130076,3.04,126.02,125.96,3.33]
[1763820130279,16.7,126.03,125.98,3.33]
[1763820130590,3.04,126.02,125.96,3.33]
[1763820130779,16.7,126.03,125.97,3.33]
[1763820130983,3.04,126.02,125.96,7.1495]
[1763820131288,0.05287556,126.0,125.98,0.05583684]
[1763820131684,0.05287556,126.0,125.98,3.38583684]
[1763820132189,3.09287556,126.0,125.98,0.05583684]
[1763820134586,0.05287556,126.0,125.98,0.05583684]
[1763820135388,0.05287556,126.0,125.98,3.38583684]
[1763820135584,3.09287556,126.0,125.98,0.05583684]
[1763820137593,0.05287556,126.0,125.98,3.38583684]
[1763820139284,0.05287556,126.0,125.98,10.53413684]
[1763820139485,0.05287556,126.0,125.99,3.33]
[1763820140395,10.185,126.05,125.99,10.4777]
[1763820140589,10.185,126.05,125.99,3.33]
[1763820140889,23.8638,126.07,126.01,7.1468]
[1763820141085,26.9038,126.07,126.01,3.33]
[1763820141494,0.05209251,126.05,126.04,10.475]
[1763820141693,0.05870934,126.06,126.05,3.33]
[1763820141993,0.06040478,126.07,126.05,3.33]
[1763820142386,0.06040478,126.07,126.06,3.33]
[1763820144691,3.04,126.13,126.08,3.33]
[1763820145796,3.0961795,126.12,126.09,0.05473199]
[1763820146402,0.0561795,126.12,126.09,3.38473199]
[1763820146898,0.0561795,126.12,126.11,3.33]
[1763820149586,0.0561795,126.12,126.09,3.38473199]
[1763820152000,3.0961795,126.12,126.09,0.05473199]
[1763820152806,0.0561795,126.12,126.09,3.38473199]
[1763820153198,0.0561795,126.12,126.1,7.1416]
[1763820153405,0.0561795,126.12,126.11,3.33]
[1763820158105,0.0561795,126.12,126.11,20.03]
[1763820158309,3.22,126.17,126.14,3.14]
[1763820158701,19.92,126.18,126.14,3.14]
[1763820159299,0.06013639,126.17,126.15,3.19762666]
[1763820159613,3.28013639,126.17,126.15,0.05762666]
[1763820160311,0.06013639,126.17,126.15,3.19762666]
[1763820161711,0.06013639,126.17,126.15,10.33632666]
[1763820161908,0.06013639,126.17,126.16,3.14]
[1763820162112,0.06013639,126.17,126.15,0.05762666]
[1763820162608,0.06013639,126.17,126.15,3.19762666]
[1763820163315,0.06013639,126.17,126.15,0.05762666]
[1763820164208,3.28013639,126.17,126.15,0.05762666]
[1763820164916,3.22,126.15,126.08,3.14]
[1763820165111,3.22,126.14,126.08,3.14]
[1763820165309,3.22,126.12,126.07,3.14]
[1763820165913,0.06110527,126.11,126.08,0.05984311]
[1763820166215,3.28110527,126.11,126.08,0.05984311]
[1763820166606,10.42240527,126.11,126.08,0.05984311]
[1763820166807,0.06110527,126.11,126.08,0.05984311]
[1763820167218,3.28110527,126.11,126.08,0.05984311]
[1763820167417,0.06110527,126.11,126.08,3.19984311]
[1763820167919,0.06110527,126.11,126.1,3.14]
[1763820170115,10.3579,126.17,126.1,3.14]
[1763820170318,10.3579,126.17,126.11,3.14]
[1763820170319,3.22,126.17,126.11,3.14]
[1763820170522,3.22,126.17,126.12,3.14]
[1763820171219,0.05717512,126.16,126.13,0.05350432]
[1763820171930,0.05717512,126.16,126.13,3.19350432]
[1763820172137,0.05717512,126.16,126.13,10.33340432]
[1763820172429,0.05717512,126.16,126.13,3.19350432]
[1763820173645,0.05717512,126.16,126.14,3.14]
[1763820174228,0.05717512,126.16,126.15,3.14]
[1763820175322,250.0,126.2,126.17,3.14]
[1763820176227,250.05024422,126.2,126.19,3.14]
[1763820177728,143.06696386,126.2,126.19,19.84]
[1763820177922,81.24056386,126.2,126.19,19.84]
[1763820178128,21.44806386,126.2,126.19,21.42]
[1763820178329,20.48806386,126.2,126.19,21.42]
[1763820178536,20.48806386,126.2,126.19,19.84]
[1763820179930,20.48806386,126.2,126.19,3.14]
[1763820180126,20.48806386,126.2,126.18,7.1371]
[1763820180337,20.48806386,126.2,126.18,23.8371]
[1763820180532,20.48806386,126.2,126.18,16.7]
[1763820180731,3.22,126.19,126.17,0.0575357]
[1763820180931,3.22,126.19,126.13,16.7]
[1763820181331,20.43781964,126.2,126.14,111.0549]
[1763820181640,20.43781964,126.2,126.13,127.7635]
[1763820181829,0.05438335,126.18,126.13,23.8397]
[1763820182036,0.05438335,126.18,126.15,0.0533798]
[1763820182234,3.27438335,126.18,126.15,0.0533798]
[1763820182737,3.22,126.16,126.07,111.1202]
[1763820182932,3.22,126.16,126.1,7.1416]
[1763820183131,6.08519886,126.15,126.08,16.7]
[1763820183338,3.22,126.15,126.08,16.7]
[1763820183532,6.08591716,126.14,126.03,111.1521]
[1763820183731,111.0535,126.15,126.07,0.05395073]
[1763820183732,0.05438372,126.1,126.07,0.05395073]
[1763820183938,3.27438372,126.1,126.07,0.05915015]
[1763820184536,10.41638372,126.1,126.07,0.05915015]
[1763820184739,3.22,126.09,126.07,0.05915015]
[1763820184932,3.22,126.09,126.01,111.166]
[1763820185132,3.22,126.09,126.01,7.1467]
[1763820185538,3.22,126.07,126.0,16.7]
[1763820185933,3.22,126.07,126.01,111.1721]
[1763820186134,0.05209951,126.05,126.02,7.2059651]
[1763820186634,0.05209951,126.05,126.02,0.0600651]
[1763820186835,3.08209951,126.05,126.02,0.0600651]
[1763820188447,3.08209951,126.05,125.97,23.8688]
[1763820188641,3.03,126.04,125.97,7.1488]
[1763820188838,3.03,126.04,125.96,16.72]
[1763820189342,3.03,126.07,125.99,7.1477]
[1763820189542,16.72,126.09,126.02,111.1632]
[1763820189738,3.03,126.1,126.02,111.21889241]
[1763820189939,0.05830593,126.07,126.05,0.05481244]
[1763820191641,0.05830593,126.07,126.05,111.19281244]
[1763820192344,0.05830593,126.07,126.05,0.05481244]
[1763820193247,0.05830593,126.07,126.05,7.19891244]
[1763820195547,0.05830593,126.07,126.06,16.72]
[1763820196247,10.169,126.15,126.06,127.8477]
[1763820196447,3.03,126.18,126.08,111.1084]
[1763820196642,3.03,126.18,126.09,16.72]
[1763820196952,3.03,126.16,126.09,16.72]
[1763820197150,111.027,126.18,126.11,0.0599778]
[1763820197151,3.08759084,126.14,126.11,0.0599778]
[1763820197449,0.05759084,126.14,126.11,0.0599778]
[1763820198445,0.05759084,126.14,126.11,111.1430778]
[1763820198650,0.05759084,126.14,126.12,118.2172]
[1763820198946,0.05759084,126.14,126.13,16.72]
[1763820199156,23.46781964,126.2,126.13,127.7859]
[1763820199541,20.43781964,126.2,126.14,111.0586]
[1763820199743,20.43781964,126.2,126.13,16.72]
[1763820200140,0.05753406,126.18,126.15,0.05600557]
[1763820203144,3.08753406,126.18,126.15,0.05600557]
[1763820204156,3.03,126.17,126.11,16.72]
[1763820205364,0.05678759,126.15,126.13,0.05813447]
[1763820205556,0.05856078,126.15,126.13,0.05813447]
[1763820205753,3.08856078,126.15,126.13,0.05813447]
[1763820206765,3.08856078,126.15,126.08,7.1427]
[1763820207548,0.05856078,126.15,126.1,111.0928]
[1763820207756,0.05856078,126.15,126.11,0.05183706]
[1763820207954,3.08856078,126.15,126.11,0.05183706]
[1763820209562,0.05856078,126.15,126.11,0.05183706]
[1763820209856,0.05856078,126.15,126.11,7.19283706]
[1763820210059,3.08856078,126.15,126.11,0.05183706]
[1763820210964,0.05856078,126.15,126.11,16.79183706]
[1763820212163,0.05856078,126.15,126.13,7.1399]
[1763820213361,20.43781964,126.2,126.17,7.1377]
[1763820214461,20.4957733,126.2,126.18,7.137]
[1763820215955,20.4957733,126.2,126.19,16.72]
[1763820216467,20.4957733,126.2,126.18,23.857]
[1763820220968,20.4957733,126.2,126.18,16.72]
[1763820221168,23.6557733,126.2,126.17,0.05844443]
[1763820221369,3.16,126.19,126.17,0.05844443]
[1763820222871,20.4957733,126.2,126.17,0.05844443]
[1763820223077,23.6557733,126.2,126.17,0.05844443]
[1763820223276,20.4957733,126.2,126.17,0.05844443]
[1763820223780,3.16,126.19,126.17,0.05844443]
[1763820224180,3.16,126.19,126.14,7.1394]
[1763820224181,3.16,126.16,126.12,16.72]
[1763820224381,3.16,126.16,126.09,14.92]
[1763820225081,0.05978674,126.14,126.11,0.05982456]
[1763820225880,0.05978674,126.14,126.12,7.1404]
[1763820226074,0.05978674,126.14,126.11,0.05982456]
[1763820227583,0.05978674,126.14,126.11,7.20072456]
[1763820227986,0.05978674,126.14,126.12,118.2173]
[1763820229692,0.05978674,126.14,126.12,124.2173]
[1763820230387,0.05978674,126.14,126.12,13.1403]
[1763820231193,0.05978674,126.14,126.13,16.72]
[1763820231898,23.59781964,126.2,126.14,7.1391]
[1763820232196,23.59781964,126.2,126.14,111.0586]
[1763820232592,23.59781964,126.2,126.17,7.1375]
[1763820232998,23.65204015,126.2,126.17,7.19205861]
[1763820233497,3.16,126.19,126.17,7.19205861]
[1763820233892,20.49204015,126.2,126.17,7.19205861]
[1763820234090,23.65204015,126.2,126.17,7.19205861]
[1763820236000,20.49204015,126.2,126.17,7.19205861]
[1763820237997,20.49204015,126.2,126.18,7.1371]
[1763820238197,20.49204015,126.2,126.19,16.72]
[1763820241097,3.16,126.29,126.23,7.1342]
[1763820241304,3.16,126.29,126.23,16.72]
[1763820241696,3.16,126.27,126.2,7.1358]
[1763820241902,3.16,126.27,126.2,16.72]
[1763820242199,3.16,126.24,126.22,0.05100624]
[1763820242505,3.22092518,126.25,126.22,0.05100624]
[1763820245703,0.06092518,126.25,126.22,0.05100624]
[1763820246113,0.06092518,126.25,126.23,7.1342]
[1763820247907,0.06092518,126.25,126.22,0.05100624]
[1763820248207,3.11092518,126.25,126.22,0.05100624]
[1763820249311,3.05,126.21,126.16,62.0]
[1763820249511,3.05,126.21,126.14,117.75752004]
[1763820249708,3.05,126.25,126.16,111.0412]
[1763820249916,3.05,126.25,126.2,7.136]
[1763820250515,0.05035973,126.24,126.21,7.19105517]
[1763820250701,0.05035973,126.24,126.21,7.18746075]
[1763820251402,0.05035973,126.24,126.21,0.05206075]
[1763820251912,0.05035973,126.24,126.22,7.1349]
[1763820257510,0.05035973,126.24,126.23,6.69962004]
[1763820257709,3.05,126.3,126.23,117.67332004]
[1763820257906,3.05,126.3,126.24,16.72]
[1763820258703,0.05598317,126.28,126.26,0.05878961]
[1763820259102,0.05598317,126.28,126.26,7.19128961]
[1763820259616,0.05598317,126.28,126.27,16.72]
[1763820261915,0.05598317,126.28,126.26,16.77878961]
[1763820263917,3.10598317,126.28,126.26,16.77878961]
[1763820264117,3.10598317,126.28,126.26,0.05878961]
[1763820265120,3.05,126.27,126.26,0.05878961]
[1763820266216,11.7622,126.27,126.21,16.7]
[1763820266406,3.05,126.26,126.21,16.7]
[1763820267312,0.05685108,126.25,126.22,0.0604248]
[1763820267622,0.06003647,126.25,126.22,0.05465291]
[1763820268116,0.06003647,126.25,126.22,7.18955291]
[1763820268414,3.11003647,126.25,126.22,0.05465291]
[1763820269815,0.06003647,126.25,126.22,0.05465291]
[1763820271518,0.06003647,126.25,126.23,7.1343]
[1763820272818,3.11003647,126.25,126.22,6.75427295]
[1763820273118,3.11003647,126.25,126.22,0.05465291]
[1763820275324,0.06003647,126.25,126.22,0.05465291]
[1763820275718,0.06003647,126.25,126.22,7.18955291]
[1763820276218,3.31003647,126.25,126.22,7.18955291]
[1763820276923,0.06003647,126.25,126.23,7.134]
[1763820277619,0.06003647,126.25,126.22,0.05465291]
[1763820278228,3.26003647,126.25,126.22,0.05465291]
[1763820279126,3.26003647,126.25,126.22,7.18955291]
[1763820279520,3.26003647,126.25,126.22,0.05465291]
[1763820281219,0.06003647,126.25,126.22,0.05465291]
[1763820282127,0.06003647,126.25,126.23,7.1343]
[1763820285828,0.06003647,126.25,126.24,16.7]
[1763820288529,3.2,126.34,126.27,110.9449]
[1763820288724,3.2,126.34,126.28,16.7]
[1763820289125,3.2,126.34,126.29,7.1306]
[1763820289432,3.2,126.32,126.3,0.05197764]
[1763820290227,3.2,126.32,126.3,7.18237764]
[1763820290827,3.25371355,126.33,126.31,7.1298]
[1763820291732,3.25371355,126.33,126.3,0.05197764]
[1763820292932,0.05371355,126.33,126.31,16.7]
[1763820293133,0.05371355,126.33,126.32,10.48273774]
[1763820293327,3.2,126.39,126.33,110.8871]
[1763820293523,3.2,126.39,126.34,16.7]
[1763820294132,7.1236,126.43,126.34,16.7]
[1763820294332,0.05206286,126.4,126.37,0.05605572]
[1763820294633,3.25206286,126.4,126.33,16.7]
[1763820294829,3.2,126.39,126.33,16.7]
[1763820295530,3.2,126.39,126.33,23.8286]
[1763820295734,3.25441989,126.37,126.35,0.05878553]
[1763820296034,3.25265431,126.37,126.35,0.05878553]
[1763820296830,3.2,126.36,126.27,110.9375]
[1763820297026,3.2,126.35,126.27,16.7]
[1763820297532,3.2,126.33,126.27,23.8319]
[1763820297933,3.25654378,126.31,126.29,0.05159413]
[1763820299841,3.25654378,126.31,126.27,16.7]
[1763820300836,3.25654378,126.31,126.28,0.05765869]
[1763820301636,3.25654378,126.31,126.29,7.1309]
[1763820302434,0.05654378,126.31,126.29,7.1309]
[1763820302637,0.05654378,126.31,126.28,0.05765869]
[1763820302845,3.25654378,126.31,126.28,0.05765869]
[1763820304036,3.25654378,126.31,126.28,7.18895869]
[1763820304234,0.05654378,126.31,126.28,7.18895869]
[1763820304434,0.05654378,126.31,126.28,0.05765869]
[1763820304839,0.05654378,126.31,126.29,23.8308]
[1763820307041,3.26,126.38,126.33,7.1283]
[1763820307239,3.26,126.38,126.33,16.7]
[1763820307554,3.26,126.41,126.34,110.8821]
[1763820307844,3.26,126.41,126.36,110.865]
[1763820308049,0.0583737,126.4,126.37,0.05090117]
[1763820308238,0.0583737,126.4,126.38,7.1257]
[1763820309349,3.3183737,126.4,126.37,16.75090117]
[1763820309550,0.0583737,126.4,126.37,16.75090117]
[1763820309847,0.0583737,126.4,126.37,23.87720117]
[1763820311236,0.0583737,126.4,126.38,7.1257]
[1763820311538,0.0583737,126.4,126.38,117.9739]
[1763820311949,0.0583737,126.4,126.38,7.1257]
[1763820312135,0.0583737,126.4,126.37,27.23363891]
[1763820312941,0.0583737,126.4,126.37,138.08813891]
[1763820313637,0.0583737,126.4,126.38,7.1257]
[1763820313837,0.0583737,126.4,126.37,16.75090117]
[1763820314546,3.3183737,126.4,126.37,16.75090117]
[1763820315146,0.0583737,126.4,126.37,16.75090117]
[1763820315347,0.0583737,126.4,126.38,110.8485]
[1763820316250,3.26,126.46,126.4,110.8264]
[1763820316447,3.26,126.51,126.42,110.8104]
[1763820316647,3.26,126.51,126.46,7.1212]
[1763820316857,3.26,126.51,126.46,23.8212]
[1763820317242,0.05101553,126.5,126.47,0.05324949]
[1763820317559,3.31101553,126.5,126.47,0.05324949]
[1763820319849,0.05101553,126.5,126.47,7.17374949]
[1763820320048,0.05101553,126.5,126.47,110.82024949]
[1763820320654,0.05101553,126.5,126.48,7.1201]
[1763820321451,0.05101553,126.5,126.47,0.05324949]
[1763820321953,3.31101553,126.5,126.47,0.05324949]
[1763820322356,3.31101553,126.5,126.41,121.29813774]
[1763820322357,3.26,126.48,126.37,110.8546]
[1763820322655,3.26,126.46,126.38,7.1257]
[1763820322949,3.26,126.46,126.37,127.5544]
[1763820323150,3.26,126.46,126.38,110.8486]
[1763820323346,0.05703608,126.43,126.41,0.05951689]
[1763820323541,0.05703608,126.43,126.41,16.75951689]
[1763820323741,3.31703608,126.43,126.41,16.75951689]
[1763820323950,0.05703608,126.43,126.41,16.75951689]
[1763820324450,3.31703608,126.43,126.37,16.7]
[1763820325549,3.31703608,126.43,126.39,0.05592822]
[1763820327853,3.31703608,126.43,126.39,7.18102822]
[1763820328350,0.05703608,126.43,126.4,7.1245]
[1763820328547,0.05703608,126.43,126.39,110.89292822]
[1763820328743,0.05703608,126.43,126.39,0.05592822]
[1763820328942,3.31703608,126.43,126.39,0.05592822]
[1763820329847,3.26,126.42,126.31,110.9074]
[1763820330052,3.26,126.41,126.32,16.7]
[1763820330253,3.26,126.37,126.32,16.7]
[1763820330754,3.31641609,126.36,126.33,0.06047716]
[1763820330944,3.26,126.36,126.33,0.06047716]
[1763820331148,0.05130921,126.36,126.33,0.06047716]
[1763820332051,3.31130921,126.36,126.33,0.06047716]
[1763820334055,3.26,126.35,126.33,0.06047716]
[1763820334244,3.26,126.35,126.28,16.72]
[1763820334848,3.26,126.34,126.28,127.654]
[1763820335048,3.26,126.34,126.28,16.72]
[1763820335244,0.05304768,126.32,126.28,127.6536]
[1763820335444,0.05304768,126.32,126.3,0.0604884]
[1763820336454,3.26,126.38,126.3,110.9791884]
[1763820336662,3.26,126.38,126.29,110.9219]
[1763820336958,3.26,126.38,126.31,110.9096]
[1763820337256,3.26,126.38,126.32,16.72]
[1763820337455,0.05303022,126.36,126.34,0.05527787]
[1763820341357,3.13303022,126.36,126.34,0.05527787]
[1763820341760,0.05303022,126.36,126.34,0.05527787]
[1763820343659,3.13303022,126.36,126.34,0.05527787]
[1763820345066,0.05303022,126.36,126.34,0.05527787]
[1763820345457,0.05303022,126.36,126.34,7.18327787]
[1763820349460,7.123,126.44,126.36,7.1267]
[1763820349661,3.08,126.43,126.36,23.8467]
[1763820350059,3.08,126.43,126.37,7.1264]
[1763820350457,0.05602717,126.41,126.39,0.0566647]
[1763820350660,3.13602717,126.41,126.39,0.0566647]
[1763820352059,0.05602717,126.41,126.39,0.0566647]
[1763820353662,3.13602717,126.41,126.39,0.0566647]
[1763820355473,0.05602717,126.41,126.39,0.0566647]